Cogmind - Beta 13 @@@ ROGUE MODE // 2024.05.26 @ 22:48:57 Player: CONM Result: Destroyed by 8J-8Y6(R) with Subdweller Beam Cannon Performance ------------- Evolutions (0) 0 Regions Visited (2) 400 Robots Destroyed (17) 85 Value Destroyed (386) 386 Prototype IDs (0) 0 Alien Tech Used (0) 0 Bonus (0) 0 TOTAL SCORE: 871 Bonus ------- None Cogmind --------- Core Integrity 0/250 Matter 273/300 Energy 240/250 System Corruption 0% Temperature Cool (33) Movement Rolling (110) Location -10/Subcaves Parts ------- > --- POWER (1) -------- Ion Engine > --- PROPULSION (2) --- Subdweller Monowheel Subdweller Monowheel > --- UTILITY (2) ------ Disposable Heat Sink Large Storage Unit > --- WEAPON (2) ------- Subdweller Beam Cannon Makeshift Axe > --- INVENTORY (15) --- Ion Engine Ion Engine Light Ion Engine Light Treads Spiked Treads Subdweller Monowheel High-capacity Storage Unit High-capacity Battery (250) Structural Scanner Terrain Scanner Seismic Detector Hacking Suite Subdweller Laser Subdweller Beam Cannon Battle Rifle Peak State ------------ > --- POWER ------------ Ion Engine > --- PROPULSION ------- Subdweller Monowheel Subdweller Monowheel > --- UTILITY ---------- Disposable Heat Sink Large Storage Unit > --- WEAPON ----------- Subdweller Beam Cannon Makeshift Axe > --- INVENTORY -------- Ion Engine Ion Engine Light Ion Engine Light Treads Spiked Treads Subdweller Monowheel High-capacity Storage Unit High-capacity Battery High-capacity Matter Pod Structural Scanner Terrain Scanner Seismic Detector Hacking Suite Subdweller Beam Cannon Battle Rifle [Rating: 16] Favorites ----------- Power Ion Engine Engine Ion Engine Propulsion Light Treads Treads Light Treads Wheel Subdweller Monowheel Utility Large Storage Unit Device Seismic Detector Storage Large Storage Unit Weapon Medium Laser Energy Gun Medium Laser Energy Cannon Subdweller Beam Cannon Ballistic Cannon Light Cannon Slashing Weapon Makeshift Axe Build | -11 -10 -10 ------- Run | Yrd Mat Sub Slots Evolved . | . . . Power . | . . . Propulsion . | . . . Utility . | . . . Weapon . | . . . Parts Attached 22 | 8 4 10 Power 3 | 2 1 . Engine 3 | 2 1 . Core . | . . . Reactor . | . . . Propulsion 7 | 2 . 5 Treads 2 | 2 . . Leg . | . . . Wheel 5 | . . 5 Hover . | . . . Flight . | . . . Utility 7 | 2 3 2 Device 5 | 1 2 2 Storage 2 | 1 1 . Processor . | . . . Hackware . | . . . Protection . | . . . Artifact . | . . . Weapon 5 | 2 . 3 Energy Gun 2 | 2 . . Energy Cannon 1 | . . 1 Ballistic Gun . | . . . Ballistic Cannon 1 | . . 1 Launcher . | . . . Special Weapon . | . . . Impact Weapon . | . . . Slashing Weapon 1 | . . 1 Piercing Weapon . | . . . Special Melee Weapon . | . . . Unidentified Prototypes . | . . . Parts Lost 3 | . . 3 Power . | . . . Propulsion 1 | . . 1 Utility . | . . . Weapon 2 | . . 2 Highest Loss Streak 3 | . . 3 To Critical Strikes . | . . . Average Slot Usage (%) 98 | . 100 97 Engine 14 | . 14 14 Treads 19 | . 28 7 Wheel 7 | . . 19 Device 14 | . 14 14 Storage 14 | . 14 14 Energy Gun 19 | . 28 5 Energy Cannon 4 | . . 10 Ballistic Cannon 1 | . . 2 Slashing Weapon 3 | . . 8 Naked Turns . | . . . Heaviest Build 37 | 15 30 37 Greatest Support 40 | 40 40 40 Greatest Overweight (x) 1 | . . 1 Average Overweight (x) . | . . . Largest Inventory Capacity 15 | 8 15 15 Average Capacity 12 | 7 11 15 Most Carried 15 | 4 15 15 Average Carried 11 | 1 10 14 Final Capacity 15 | 8 15 15 Final Carried 15 | 3 15 15 Class Distribution -------------------- 100% | Mutant Dominant Class ---------------- Mutant | -10/Materials Mutant | -10/Subcaves Resources | -11 -10 -10 ----------- Run | Yrd Mat Sub Matter Collected 411 | 65 209 137 Remotely . | . . . Salvage Created 448 | 24 261 163 Parts 27 | 5 13 9 Haulers Intercepted . | . . . Recyclers Shooed . | . . . Parts Field Recycled . | . . . Retrieved Matter . | . . . Parts Self-Destructed 7 | . . 7 Prevented . | . . . Kills | -11 -10 -10 ------- Run | Yrd Mat Sub Combat Hostiles Destroyed 14 | . 10 4 Guns 9 | . 9 . Cannons 4 | . . 4 Classes Destroyed 5 | 1 3 1 Tunneler 2 | 2 . . Operator 1 | . 1 . Swarmer 6 | . 6 . Grunt 4 | . 4 . Subdweller 4 | . . 4 Best Kill Streak 3 | 2 3 2 Combat Bots Only 3 | . 3 2 Max Kills in Single Turn 1 | 1 1 1 Gunslinging . | . . . Exploded . | . . . Melee . | . . . Uniques/NPCs Destroyed . | . . . Combat | -11 -10 -10 -------- Run | Yrd Mat Sub Hostile Shots Fired 81 | . 56 25 Missed 20 | . 14 6 Damage Taken 866 | . 394 472 Core 264 | . 93 171 Absorbed by Shields . | . . . Core Remaining (%) 100 | 100 . . Volleys Fired 56 | 4 36 16 Largest 2 | 2 2 2 Hottest 115 | 100 100 115 Shots Fired 100 | 8 72 20 Gun 84 | 8 72 4 Cannon 16 | . . 16 Launcher . | . . . Special . | . . . Kinetic 9 | . . 9 Thermal 91 | 8 72 11 Explosive . | . . . Electromagnetic . | . . . Robot Hit Streak 13 | 3 7 13 Robot Miss Streak 5 | 1 5 1 Penetration Max . | . . . Secondary Targets 2 | . 2 . Max Gunslinging Chain 1 | . 1 . Shots Hit Robots 61 | 4 39 18 Core Hits 23 | 2 15 6 Critical Kills . | . . . Critical Parts Destroyed . | . . . Critical Strikes 6 | . 6 . Burn 6 | . 6 . Melee Attacks 15 | . . 15 Impact . | . . . Slashing 15 | . . 15 Piercing . | . . . Sneak Attacks . | . . . Combat Hostiles . | . . . Follow-up Attacks . | . . . Damage Inflicted 884 | 50 505 329 Guns 589 | 50 503 36 Cannons 293 | . . 293 Explosions . | . . . Melee . | . . . Ramming 2 | . 2 . Kinetic 162 | . . 162 Thermal 720 | 50 503 167 Explosive . | . . . Electromagnetic . | . . . Impact . | . . . Slashing . | . . . Piercing . | . . . Highest Corruption . | . . . Average Corruption . | . . . Corruption Purged . | . . . Corruption Blocked . | . . . Overload Shots . | . . . Overflow Damage 4 | . . 4 Projectiles 4 | . . 4 Explosions . | . . . Melee . | . . . Knockbacks 3 | . . 3 Impact . | . . . Kinetic 3 | . . 3 Secondary . | . . . Self-Inflicted Damage . | . . . Shots . | . . . Rammed 1 | . 1 . Targets Rammed 1 | . 1 . Kicked . | . . . Crushed . | . . . Highest Temperature 312 | 78 312 24 Average Temperature 86 | 39 93 16 Received Heat Transfer 240 | . 102 138 Siege Activations . | . . . Robots Corrupted . | . . . Combat Hostiles . | . . . Parts Fried . | . . . Impact Corruptions . | . . . Robots Melted 1 | . 1 . Combat Hostiles 1 | . 1 . Parts Melted 8 | . 8 . Heat Transferred 2368 | 148 1924 296 Parts Sabotaged . | . . . Parts Stolen . | . . . Parts Stripped . | . . . Power Chain Reactions . | . . . Alert | -11 -10 -10 ------- Run | Yrd Mat Sub Peak Influence 307 | 10 307 . Initial 6 | . 6 . Average 111 | 2 124 . Maximum Alert Level 1 | . 1 . Low Security (%) 82 | 100 80 . Level 1 17 | . 19 . Level 2 . | . . . Level 3 . | . . . Level 4 . | . . . Level 5 . | . . . High Security . | . . . Max Security . | . . . Squads Dispatched 2 | . 2 . Investigation 1 | . 1 . Extermination . | . . . Reinforcement 1 | . 1 . Assault . | . . . Garrison . | . . . Intercept . | . . . Searches Triggered . | . . . Construction Impeded . | . . . Haulers Reinforced . | . . . Active Scanning Responses . | . . . Cargo Convoy Interrupts . | . . . Stealth | -11 -10 -10 --------- Run | Yrd Mat Sub Distress Signals 2 | . 2 . Communications Jammed . | . . . Distress Signals . | . . . Times Spotted 23 | . 17 6 Peak Tracking Total 4 | . 4 2 Tactical Retreats 2 | . 2 . Traps | -11 -10 -10 ------- Run | Yrd Mat Sub Traps Triggered 1 | . 1 . Indirectly . | . . . Trap Hack Attempts . | . . . Triggered . | . . . Disarmed . | . . . Reprogrammed . | . . . Reused . | . . . Traps Extracted . | . . . Installed . | . . . Triggered 1 | . . 1 Machines | -11 -10 -10 ---------- Run | Yrd Mat Sub Machines Disabled . | . . . Max in Single Turn . | . . . Machines Repaired . | . . . Machines Dismantled . | . . . Machines Sabotaged . | . . . Overloaded Fab Kills . | . . . Hacking | -11 -10 -10 --------- Run | Yrd Mat Sub Machines Accessed 6 | . 5 1 Terminals 5 | . 5 . Fabricators . | . . . Repair Stations . | . . . Recycling Units . | . . . Scanalyzers . | . . . Garrison Access . | . . . Total Hacks 12 | . 11 1 Successful 5 | . 4 1 Failed 7 | . 7 . Catastrophic 2 | . 2 . Database Lockouts . | . . . Manual 9 | . 8 1 Terminals 11 | . 11 . Fabricators . | . . . Repair Stations . | . . . Recycling Units . | . . . Scanalyzers . | . . . Garrison Access . | . . . Terminal Hacks 3 | . 2 1 Record 1 | . . 1 Terminal Index 1 | . 1 . Registered Components 1 | . 1 . Fabricator Hacks . | . . . Repair Station Hacks . | . . . Recycling Unit Hacks . | . . . Scanalyzer . | . . . Garrison Access Hacks . | . . . Unauthorized Hacks 2 | . 2 . Terminals 2 | . 2 . Assimilate 1 | . 1 . Operators 1 | . 1 . Fabricators . | . . . Repair Stations . | . . . Recycling Units . | . . . Scanalyzers . | . . . Garrison Access . | . . . Data Cores Recovered . | . . . Used . | . . . Hacking Detections 5 | . 5 . Full Trace Events . | . . . Feedback Events . | . . . Feedback Blocked . | . . . Robot Schematics Acquired . | . . . Robots Built . | . . . Authchips . | . . . Time . | . . . Total Robot Build Rating . | . . . Part Schematics Acquired . | . . . Parts Built . | . . . Authchips . | . . . Time . | . . . Total Part Build Rating . | . . . Parts Repaired . | . . . Time . | . . . Parts Recycled . | . . . Recycled Matter . | . . . Retrieved Matter . | . . . Retrieved Components . | . . . Parts Scanalyzed . | . . . Part Schematics Acquired . | . . . Parts Damaged . | . . . Bothacking | -11 -10 -10 ------------ Run | Yrd Mat Sub Used RIF Installer . | . . . Robots Hacked . | . . . Non-combat . | . . . Combat . | . . . Robot Hacks Applied . | . . . Relay Couplers Released . | . . . Fabnet Peak Effective % . | . . . Robots Rewired . | . . . Allies Hacked . | . . . Hacks Repelled . | . . . Allies | -11 -10 -10 -------- Run | Yrd Mat Sub Total Allies . | . . . Largest Group . | . . . Highest-Rated Group . | . . . Highest-Rated Ally . | . . . Total Orders . | . . . Ally Attacks . | . . . Total Damage . | . . . Kills . | . . . Allies Corrupted . | . . . Allies Melted . | . . . Intel | -11 -10 -10 ------- Run | Yrd Mat Sub Robot Analysis Total . | . . . Derelict Logs Recovered . | . . . Drone Launches . | . . . Drone Recoveries . | . . . Exploration | -11 -10 -10 ------------- Run | Yrd Mat Sub Turns Passed 2077 | 136 1184 757 Spaces Moved 1068 | 77 469 522 Core 15 | 15 . . Treads 646 | 62 469 115 Legs . | . . . Wheels 407 | . . 407 Hover . | . . . Flight . | . . . Fastest Speed 50 | 50 160 95 Average Speed 139 | 138 160 121 Slowest Speed 240 | 160 160 240 Overloaded Moves . | . . . Propulsion Burnouts . | . . . Robots Hopped . | . . . Cave-ins Triggered . | . . . Exploration Rate (%) 35 | 5 64 37 Regions Visited 2 Branch Regions 1 Pre-discovered Areas . | . . . Known Exits Taken . | . . . Unknown Exits Taken 2 | 1 1 . Scrap Searched 1 | . . 1 Spaces Dug . | . . . Terrain Destroyed . | . . . Melee . | . . . Projectile . | . . . AOE . | . . . Terrain Rammed . | . . . Walls Destroyed . | . . . Machines Disabled . | . . . Actions | -11 -10 -10 --------- Run | Yrd Mat Sub Total 1540 | 96 832 612 Wait 339 | . 306 33 Move 1066 | 76 468 522 Hop . | . . . Pick Up 27 | 6 14 7 Fast Attach 7 | 5 . 2 Attach 5 | 2 . 3 Detach 1 | . . 1 Swap 10 | 1 4 5 Drop 13 | 2 3 8 Fire 56 | 4 36 16 Melee 15 | . . 15 Ram . | . . . Kick . | . . . Crush 1 | . 1 . Escape Stasis . | . . . Rewire . | . . . Trap . | . . . Miscellaneous . | . . . Route ------- -11/Scrapyard -10/Materials (discovered 2 exits: [*Min] / *Sub) -10/Subcaves (discovered 1 exit: [*Mat]) History --------- Turn | Location | Event 9 | -11/Scrapyard | Discovered new exit (range 15) 137 | -11/Scrapyard | Entered Materials 309 | -10/Materials | Build established: Mutant 315 | -10/Materials | Discovered new exit (range 16) 989 | -10/Materials | Discovered new exit (range 11) 1321 | -10/Materials | Entered Subcaves 1446 | -10/Subcaves | Discovered new exit (range 10) 1479 | -10/Subcaves | Core integrity fell below 50% 1501 | -10/Subcaves | Lost 3 parts (1n2w) 1601 | -10/Subcaves | Shifting Twisted Machinery released Sub. Beam Cannon 1602 | -10/Subcaves | Shifting Twisted Machinery released Sub. Machine Gun 1675 | -10/Subcaves | Shifting Twisted Machinery released Sub. Beam Cannon 1678 | -10/Subcaves | Shifting Twisted Machinery released Spk. Treads 1838 | -10/Subcaves | Shifting Twisted Machinery released Sub. Laser 1851 | -10/Subcaves | Shifting Twisted Machinery released Sub. Shrapnel Launcher 1909 | -10/Subcaves | Visited Clippyterm 1923 | -10/Subcaves | A swath of the cavern ceiling suddenly collapsed 1973 | -10/Subcaves | A swath of the cavern ceiling suddenly collapsed 2070 | -10/Subcaves | Core integrity fell below 20% 2078 | -10/Subcaves | Destroyed by 8J-8Y6(R) with Subdweller Beam Cannon Last Messages --------------- 01777_ Dropped Wheel. 01782_ Acquired 54 matter. 01784_ Dropped Wheel. 01788_ Dropped Heat Sink. 01788_ Acquired Disposable Heat Sink. Sub. Laser falls loose from the Twisted Machinery. Sub. Shrapnel Launcher falls loose from the Twisted Machinery. 01851_ Dropped Hcp. Matter Pod. 01852_ Acquired Sub. Laser. 01903_ A thin wall crumbles away, revealing a door. 01909_ The door opens automatically. 01913_ Connecting with Clippyterm... 01913_ Current location identified: Subcaves >>Record! "Clippyterm" Welcome to Clippyterm v0.53, my misguided attempt to resurrect an ancient AI. I give up. There must be something fundamentally wrong with the algorithm, because no matter how much data I collect to feed it, half the time it still manages to suggest unhelpful sample queries and responses. --DD-NU8 A swath of the cavern ceiling suddenly collapses. Map ----- +----------------------------------------------------+ | ?????????????#??????# "] ""#??????????###????? | | ?????????????# ????# """" "" #?????????????????? | | ??????????????# ### " ##?????????????????? | | ??????????????# ####"##??????????????????? | | ??????????????# # ######???????????????????? | | ??????????????# # "#""# ???????????????????? | | ??????????????# ## ### """"""???????????????????? | | ??????????????##??##?## "##"##???????????????????? | | ?????????????????????# ##??"????????????????????? | | ?????????????????????# ##???????????????????????? | | ?????????????????????## #?????? ??????????????? | | ??????????????????????# #????"? ??????????????? | | ?????????????????????## #???#" ??????????????? | | ??????????????????#### ##??? " ???????????????? | | ??????????????????# ##???# " #???????????????? | | ??????????????????## "##???? #???????????????? | | ???????????????????# #???? #???????????????? | | ???????????????????## ##??## #??????????????? | | ????????????????????# #??? #?????????????? | | ????????????????????# #??? ?# ##???????????? | | ???????????????????## ##??# ??# ##???????###? | | ???????????????????# "#?? #?## ###???## #? | | ???????????????###?## #??# #?# #??## ## | | ???????????????# ### "####RR##? #??# # | | ???????????????# """## #?? #??##= # | | ?????????????### """""@ #???# #?###%! | | ????????????## """"# #???# ###= | | ????????????# "### ##?### !&! | | ????????????# "" #?# #### | | ????????????# "" #### ! ## | | ????????????# ""## ### &%### #### | | ????????????# "## # ## ## *&## ##??? | | ????????????## "" "# # ###### ##### | | ?????????????### "" ### | | ???????????????# "" #### ### | | ???????????????# ## # ## ##??# ## | | ???????????????### ##### #### ##??## | | ?????????????????###????# #??# ##???# | | ????????????????????????# ??# ###????# | | ???????????????????????? ??# #??????# | | ???????????????????????? ?? ??????### | | ??????????????????????? ?# ????????## | | ??????????????????????? ?## ????????## | | ???????????????????????## ???# #?????????### # | | ?????????????????????????###???###???????????##### | | ?????????????????????????????????????????????????? | | ?????????????????????????????????????????????????? | | ?????????????????????????????????????????????????? | | ?????????????????????????????????????????????????? | | ?????????????????????????????????????????????????? | +----------------------------------------------------+ Best States ------------- Heat Dissipation 35 Coolant Potential 50 Energy Generation 10 Energy Capacity 250 Matter Stores 280 Matter Capacity 300 Sight Range 16 Terrain Scan Density 10 Evasion (%) 50 Recoil Reduction 2 Item Schematics ----------------- None Robot Schematics ------------------ None Fabricated ------------ Nothing Alien Tech Used ----------------- None Achievements -------------- None Challenges ------------ None Game ------ Seed ElectronMyomerEngine Manual? 0 Play Time 00:19:38 Cumulative 20.9 hours Start 2024.05.25 @ 22:45:26 End 2024.05.26 @ 22:48:57 Sessions 3 Manual Loads 0 Difficulty Rogue Special Mode None Game No. 44 Rogue 44 Adventurer 0 Explorer 0 Win Type - Total 0 Types 0/0/0/0/0/0/0/0/0 Lore% 18 Gallery% 16 Achievement% 21 Wizard Run 0 Options --------- Layout 0 ASCII 0 Keyboard 0 Movement Arrows Keybinds 0 Fullscreen 2 Font 18/Terminus Map View 76x50 Zoom Use 0% Tactical HUD 1 Map Filters NONE Filters NONE Steam 1 RUN: 6cb180ca-08aa-490b-8ea4-afcc614fa1a6